fUST/lending_fUST_20240923
["ID","MTS","AMOUNT","RATE_DAILY","PERIOD"]
[338902395,1727044241605,-2468.74643551,0.0002609,4]
[338902396,1727044241615,-1898.50392724,0.0002609,4]
[338902397,1727044241624,-151.0,0.000261,7]
[338902398,1727044241634,-190.795562,0.000261,7]
[338902399,1727044241644,-151.0,0.000261,7]
[338902400,1727044241654,-151.0,0.000261,7]
[338902401,1727044241663,-151.0,0.000261,7]
[338902402,1727044241672,-151.0,0.000261,7]
[338902403,1727044241682,-156.188256,0.000261,7]
[338902404,1727044241691,-176.6901,0.000261,7]
[338902405,1727044241700,-151.0,0.000261,7]
[338902406,1727044241710,-500.0,0.00026109,2]
[338902407,1727044241719,-500.0,0.00026109,2]
[338902408,1727044241728,-500.0,0.00026109,2]
[338902409,1727044241737,-151.0,0.0002611,7]
[338902410,1727044241747,-151.0,0.0002611,7]
[338902411,1727044241756,-151.0,0.0002611,7]
[338902412,1727044241765,-219.655964,0.0002611,7]
[338902413,1727044241776,-500.0,0.00026147,2]
[338902414,1727044241785,-1781.02718892,0.00026186,2]
[338902415,1727044241795,-151.0,0.00026301,7]
[338902416,1727044241804,-660.0,0.00026301,2]
[338902417,1727044241814,-500.0,0.0002642,2]
[338902418,1727044241824,-500.0,0.00026421,2]
[338902419,1727044241834,-500.0,0.00026695,2]
[338902420,1727044241845,-151.0,0.00026932,7]
[338902421,1727044241855,-155.208731,0.00026932,7]
[338902422,1727044241866,-152.466372,0.00026932,7]
[338902423,1727044241875,-500.0,0.00026969,2]
[338902424,1727044241890,-151.0,0.00026993,7]
[338902425,1727044241900,-151.0,0.00026993,7]
[338902426,1727044241909,-305.411,0.00027001,15]
[338902427,1727044241919,-370.7,0.00027034,4]
[338902428,1727044241929,-500.0,0.00027243,2]
[338902429,1727044241939,-151.0,0.00027329,7]
[338902430,1727044241949,-151.0,0.00027329,7]
[338902431,1727044241958,-346.87462771,0.00027338,2]
[338902432,1727044241968,-151.0,0.00027339,7]
[338902433,1727044241977,-151.0,0.00027339,7]
[338902434,1727044241986,-151.0,0.0002735,7]
[338902435,1727044241996,-151.0,0.0002735,7]
[338902436,1727044242007,-151.0,0.0002735,7]
[338902437,1727044242016,-151.0,0.0002736,7]
[338902438,1727044242025,-151.0,0.0002737,7]
[338902439,1727044242036,-151.0,0.0002737,7]
[338902440,1727044242045,-601.23607829,0.00027397,2]
[338902441,1727044242058,-398.76392171,0.00027397,2]
[338902442,1727044242068,-1000.0,0.00027397,2]
[338902443,1727044242077,-577.22094657,0.00027397,2]
[338902444,1727044242087,-191.790178,0.00027397,2]
[338902445,1727044242098,-150.0,0.00027397,5]
[338902446,1727044242219,-500.0,0.00027517,7]
[338902447,1727044242230,-500.0,0.00027791,7]
[338902448,1727044242242,-151.0,0.0002797,7]
[338902449,1727044242253,-151.0,0.0002797,7]
[338902450,1727044242262,-273.468966,0.0002797,7]
[338902451,1727044242272,-151.0,0.00027979,7]
[338902452,1727044242281,-200.300713,0.00027979,7]
[338902453,1727044242291,-500.0,0.00028065,7]
[338902454,1727044242300,-150.0,0.000281,2]
[338902455,1727044242311,-185.0,0.00028102,2]
[338902456,1727044242322,-500.0,0.00028339,7]
[338902457,1727044242332,-370.7,0.0002844,5]
[338902458,1727044242342,-500.0,0.00028613,7]
[338902459,1727044242351,-500.0,0.00028887,7]
[338902460,1727044242360,-16.3420843,0.00029161,7]
[338902461,1727044242372,-491.01219711,0.00029161,7]
[338902462,1727044242382,-1211.78681489,0.00029329,2]
[338902463,1727044242394,-569.24037403,0.00029329,2]
[338902464,1727044242404,-370.7,0.00029846,6]
[338902465,1727044242414,-280.217188,0.0003,7]
[338902466,1727044242424,-1210.30575349,0.0003,3]
[338902467,1727044242433,-151.0,0.0003,7]
[338902468,1727044242443,-151.757561,0.0003,7]
[338902469,1727044242452,-245.611023,0.0003,7]
[338902470,1727044242462,-245.611023,0.0003,7]
[338902471,1727044242471,-287.81622,0.0003,7]
[338902472,1727044242481,-5218.45959017,0.0003,30]
[338902473,1727044242493,-6205.8738259,0.0003,30]
[338902474,1727044242503,-264.061443,0.0003,7]
[338902475,1727044242514,-205.730158,0.0003,7]
[338902476,1727044242523,-205.730158,0.0003,7]
[338902477,1727044242534,-151.0,0.0003,7]
[338902478,1727044242543,-323.20812,0.0003,7]
[338902479,1727044242552,-323.20812,0.0003,7]
[338902480,1727044242562,-242.0,0.0003,2]
[338902481,1727044242571,-151.0,0.0003,7]
[338902482,1727044242581,-210.0,0.0003013,22]
[338902483,1727044242591,-152.33630927,0.00030359,2]
[338902484,1727044242601,-166.250462,0.00030943,2]
[338902485,1727044242610,-394.100412,0.00031018,2]
[338902486,1727044242620,-370.7,0.00031253,7]
[338902487,1727044242630,-1210.30575349,0.000318,3]
[338902488,1727044242639,-150.0,0.00032,30]
[338902489,1727044242649,-777.28964815,0.00032471,2]
[338902490,1727044242660,-1003.73754077,0.00032471,2]
[338902491,1727044242670,-329.39145462,0.00032659,7]
[338902510,1727044243381,-41.30854538,0.00032659,7]
[338902511,1727044243390,-150.0,0.00032935,14]
[338902512,1727044243400,-150.0,0.00032935,14]
[338902513,1727044243409,-200.0,0.00032935,14]
[338902514,1727044243418,-266.77072152,0.00032935,7]
[338902515,1727044243427,-150.0,0.00033,30]
[338902516,1727044243446,-242.0,0.00033,2]
[338902517,1727044243457,-156.0,0.00033,2]
[338902518,1727044243467,-191.790178,0.00033165,2]
[338902519,1727044243476,-29797.9772848,0.0003333,5]
[338902520,1727044243486,-1898.50392724,0.0003333,5]
[338902521,1727044243496,-1000.0,0.0003334,2]
[338902522,1727044243508,-29797.9772848,0.0003343,5]
[338902523,1727044243518,-1898.50392724,0.0003343,5]
[338902524,1727044243528,-151.0,0.0003344,14]
[338902525,1727044243537,-151.0,0.0003344,14]
[338902526,1727044243548,-245.611023,0.0003344,14]
[338902527,1727044243560,-245.611023,0.0003344,14]
[338902528,1727044243574,-245.611023,0.0003344,14]
[338902529,1727044243584,-245.611023,0.0003344,14]
[338902530,1727044243595,-205.730158,0.0003344,14]
[338902531,1727044243607,-205.730158,0.0003344,14]
[338902532,1727044243617,-205.730158,0.0003344,14]
[338902533,1727044243626,-205.730158,0.0003344,14]
[338902534,1727044243638,-229.865876,0.0003344,14]
[338902535,1727044243648,-323.20812,0.0003344,14]
[338902536,1727044243658,-323.20812,0.0003344,14]
[338902537,1727044243667,-323.20812,0.0003344,14]
[338902538,1727044243677,-323.20812,0.0003344,14]
[338902539,1727044243686,-151.0,0.0003344,14]
[338902540,1727044243695,-151.0,0.0003344,14]
[338902541,1727044243705,-1210.30575349,0.000336,3]
[338902542,1727044243714,-151.0,0.000338,14]
[338902543,1727044243724,-280.938712,0.000338,14]
[338902544,1727044243734,-200.0,0.00034,30]
[338902545,1727044243744,-150.112234,0.00034,9]
[338902546,1727044243753,-370.7,0.00034065,15]
[338902547,1727044243763,-156.0,0.00034521,2]
[338902548,1727044243773,-1331.33632884,0.000354,7]
[338902549,1727044243784,-370.7,0.00035471,15]
[338902550,1727044243793,-150.112233,0.000356,7]
[338902551,1727044243802,-1781.02718892,0.00035614,2]
[338902552,1727044243812,-400.0,0.00035616,2]
[338902553,1727044243821,-1612.213622,0.00035616,120]
[338902554,1727044243831,-4622.29125722,0.00035616,3]
[338902610,1727044246317,-728.83673973,0.00025039,2]
[338902611,1727044246327,-17604.33465198,0.00035606,3]
[338902617,1727044275461,157.42288929,0.0001989,7]
[338902677,1727045007201,5000.0,0.000141,2]
[338902679,1727045015722,5000.0,0.000141,2]
[338902680,1727045024876,5000.0,0.000141,2]
[338902681,1727045032640,5000.0,0.000141,2]
[338902682,1727045041837,5000.0,0.000141,2]
[338902683,1727045050175,2428.17002034,0.000141,2]
[338902701,1727045291975,219.21298692,0.000141,2]
[338902713,1727045432371,-330.05090625,0.000215,2]
[338902714,1727045432381,-154.32020794,0.000215,2]
[338902716,1727045432390,-654.16177482,0.000216,2]
[338902718,1727045432402,-2345.83822518,0.000216,2]
[338902721,1727045432412,-1265.72527135,0.0002161,2]
[338902755,1727045439679,-4061.34748165,0.0002161,2]
[338902756,1727045439689,-300.0,0.00021916,2]
[338902757,1727045439698,-500.0,0.00021917,2]
[338902758,1727045439708,-500.0,0.00021917,2]
[338902759,1727045439718,-500.0,0.00021917,2]
[338902760,1727045439727,-500.0,0.00021917,2]
[338902761,1727045439737,-500.0,0.00021917,2]
[338902762,1727045439748,-500.0,0.00021917,2]
[338902763,1727045439759,-500.0,0.00021917,2]
[338902764,1727045439769,-500.0,0.00021917,2]
[338902765,1727045439780,-201.47743998,0.00021917,2]
[338902766,1727045439792,-500.0,0.00021917,2]
[338902767,1727045439801,-500.0,0.00021917,2]
[338902768,1727045439810,-500.0,0.00021917,2]
[338902769,1727045439820,-154.32020789,0.00022015,2]
[338902770,1727045439831,-250.0,0.00022421,2]
[338902771,1727045439842,-154.32020789,0.0002253,2]
[338902772,1727045439853,-3000.0,0.00022796,2]
[338902773,1727045439863,-250.0,0.00022905,2]
[338902774,1727045439874,-250.0,0.00022968,2]
[338902775,1727045439884,-250.0,0.00023031,2]
[338902776,1727045439894,-154.32020789,0.00023045,2]
[338902777,1727045439910,-250.0,0.00023094,2]
[338902778,1727045439922,-250.0,0.00023157,2]
[338902779,1727045439932,-250.0,0.00023219,2]
[338902780,1727045439942,-500.0,0.00023253,2]
[338902781,1727045439952,-525.44590669,0.00023253,2]
[338902782,1727045439963,-500.0,0.00023253,2]
[338902783,1727045439973,-500.0,0.00023253,2]
[338902784,1727045439983,-500.0,0.00023253,2]
[338902785,1727045439993,-500.0,0.00023253,2]
[338902786,1727045440003,-500.0,0.00023253,2]
[338902787,1727045440012,-500.0,0.00023253,2]
[338902788,1727045440023,-500.0,0.00023253,2]
[338902789,1727045440033,-287.00780251,0.00023253,2]
[338902790,1727045440045,-928.3095548,0.00023254,2]
[338902791,1727045440054,-250.0,0.00023282,2]
[338902792,1727045440064,-250.0,0.00023345,2]
[338902793,1727045440074,-250.0,0.00023408,2]
[338902794,1727045440084,-250.0,0.00023471,2]
[338902795,1727045440094,-179.99187,0.00023496,2]
[338902796,1727045440105,-500.0,0.00023527,2]
[338902797,1727045440115,-351.46,0.00023527,2]
[338902798,1727045440125,-500.0,0.00023527,2]
[338902799,1727045440135,-285.94356187,0.00023527,2]
[338902800,1727045440144,-250.0,0.00023533,2]
[338902801,1727045440155,-154.32020789,0.0002356,2]
[338902802,1727045440165,-250.0,0.00023596,2]
[338902803,1727045440175,-573.3779952,0.00023606,2]
[338902804,1727045440185,-2349.9078533,0.00023654,2]
[338902805,1727045440194,-250.0,0.00023659,2]
[338902806,1727045440204,-250.0,0.00023722,2]
[338902807,1727045440213,-547.668308,0.0002377,2]
[338902808,1727045440223,-250.0,0.00023785,2]
[338902809,1727045440232,-417.76,0.00023801,2]
[338902810,1727045440242,-500.0,0.00023801,2]
[338902812,1727045440252,-250.0,0.00023848,2]
[338902814,1727045440263,-250.0,0.0002391,2]
[338902815,1727045440273,-250.0,0.00023973,2]
[338902817,1727045440282,-250.0,0.00024036,2]
[338902819,1727045440294,-154.32020789,0.00024074,2]
[338902821,1727045440303,-500.0,0.00024075,2]
[338902823,1727045440312,-250.0,0.00024099,2]
[338902824,1727045440321,-300.0,0.00024108,2]
[338902825,1727045440330,-500.0,0.00024349,2]
[338902826,1727045440340,-154.32020789,0.00024589,2]
[338902827,1727045440351,-500.0,0.00024623,2]
[338902828,1727045440361,-500.0,0.00024897,2]
[338902829,1727045440371,-154.32020789,0.00025104,2]
[338902830,1727045440381,-500.0,0.00025171,2]
[338902831,1727045440391,-500.0,0.00025445,2]
[338902832,1727045440402,-154.32020789,0.00025619,2]
[338902834,1727045440413,-500.0,0.00025679,2]
[338902836,1727045440424,-270.32,0.00025679,2]
[338902838,1727045440434,-619.06,0.00025679,2]
[338902840,1727045440444,-375.95,0.00025679,2]
[338902842,1727045440454,-601.16,0.00025679,2]
[338902844,1727045440464,-500.0,0.00025679,2]
[338902846,1727045440473,-650.0,0.00025679,2]
[338902848,1727045440483,-6097.290554,0.0002568,2]
[338902849,1727045440492,-500.0,0.00025719,2]
[338902851,1727045440502,-2725.9498567,0.0002572,2]
[338902853,1727045440511,-500.0,0.00025993,2]
[338902854,1727045440521,-500.0,0.00026267,2]
[338902855,1727045440530,-3805.61464462,0.00026365,2]
[338902856,1727045440547,-2291.67590938,0.00026365,2]
[338902857,1727045440557,-208.32409062,0.00026541,2]
[338902858,1727045440660,-291.67590938,0.00026541,2]
[338902859,1727045440669,-500.0,0.00026815,2]
[338902860,1727045440679,-6097.290554,0.0002705,2]
[338902861,1727045440689,-357.72416523,0.00027089,2]
[338902862,1727045440701,-142.27583477,0.00027089,2]
[338902863,1727045440710,-500.0,0.00027363,2]
[338902864,1727045440719,-222.61116,0.00027397,2]
[338902865,1727045440729,-150.0,0.00027397,5]
[338902866,1727045440738,-214.26006301,0.00027637,15]
[338902867,1727045440748,-150.0,0.00028,2]
[338902868,1727045440757,-600.0,0.00028033,20]
[338902869,1727045440766,-151.0,0.00029778,6]
[338902870,1727045440775,-244.0,0.0003,2]
[338902871,1727045440785,-244.329,0.00030131,25]
[338902872,1727045440795,-156.41261181,0.00030514,2]
[338902873,1727045440805,-615.72,0.00030604,3]
[338902874,1727045440815,-1317.80970159,0.00030604,3]
[338902875,1727045440826,-3899.97367372,0.00030604,3]
[338902876,1727045440837,-2416.69875994,0.00030604,3]
[338902933,1727045446605,-810.70126404,0.00030604,3]
[338903043,1727046632637,-150.0,0.000216,2]
[338903045,1727046632646,-166.250462,0.000233,2]
[338903047,1727046632656,-228.6807884,0.0002368,2]
[338903049,1727046632665,-197.892971,0.00023848,2]
[338903051,1727046632675,-173.512154,0.00024027,2]
[338903053,1727046632684,-173.512154,0.00024236,2]
[338903055,1727046632693,-197.892971,0.00024444,2]
[338903057,1727046632703,-173.512154,0.00024445,2]
[338903059,1727046632712,-173.512154,0.00024653,2]
[338903061,1727046632722,-300.0,0.00024723,2]
[338903063,1727046632731,-233.1,0.00024723,2]
[338903065,1727046632740,-4682.61767335,0.00024724,2]
[338903114,1727046638997,-948.255,0.00024724,2]
[338903115,1727046639033,-19269.12732665,0.00024724,2]
[338903116,1727046639042,-273.834154,0.00024827,2]
[338903117,1727046639051,-173.512154,0.00024862,2]
[338903118,1727046639060,-2031.257061,0.00024875,2]
[338903119,1727046639069,-618.94746442,0.0002494,2]
[338903120,1727046639078,-2632.2861822,0.00024966,2]
[338903121,1727046639086,-197.892971,0.0002504,2]
[338903122,1727046639095,-173.512154,0.00025071,2]
[338903123,1727046639105,-173.512154,0.00025279,2]
[338903124,1727046639114,-2031.257061,0.0002556,2]
[338903125,1727046639126,-500.0,0.00025679,2]
[338903126,1727046639135,-2031.257061,0.00026245,2]
[338903127,1727046639145,-420.0,0.00026791,2]
[338903128,1727046639154,-500.0,0.00026893,2]
[338903129,1727046639163,-391.48344109,0.00026893,2]
[338903130,1727046639173,-500.0,0.00026893,2]
[338903131,1727046639183,-500.0,0.00026893,2]
[338903132,1727046639192,-500.0,0.00026893,2]
[338903133,1727046639207,-500.0,0.00026893,2]
[338903134,1727046639216,-500.0,0.00026893,2]
[338903135,1727046639225,-500.0,0.00026893,2]
[338903136,1727046639234,-479.65514858,0.00026893,2]
[338903137,1727046639243,-298.52256002,0.00026893,2]
[338903138,1727046639253,-195.463,0.00027041,15]
[338903139,1727046639262,-618.94746435,0.00027363,2]
[338903140,1727046639272,-261.480602,0.00027397,2]
[338903141,1727046639281,-150.0,0.000278,2]
[338903142,1727046639290,-587.0,0.00029031,2]
[338903143,1727046639300,-618.94746435,0.00029786,2]
[338903144,1727046639309,-6404.46842066,0.00029912,2]
[338903145,1727046639319,-300.0,0.0003,3]
[338903146,1727046639328,-165.95959369,0.0003,2]
[338903147,1727046639338,-6404.46842067,0.00030161,2]
[338903148,1727046639347,-338.66449493,0.00030213,2]
[338903149,1727046639356,-150.0,0.00030313,2]
[338903150,1727046639365,-432.509,0.00030604,7]
[338903151,1727046639375,-500.0,0.00030622,15]
[338903152,1727046639385,-500.0,0.00030622,15]
[338903153,1727046639395,-500.0,0.00030623,15]
[338903154,1727046639405,-501.75945115,0.00030623,15]
[338903155,1727046639415,-500.0,0.00030623,15]
[338903156,1727046639425,-500.5348423,0.00030623,15]
[338903157,1727046639435,-500.0,0.00030623,15]
[338903158,1727046639444,-500.0,0.00030623,15]
[338903159,1727046639456,-145.93229491,0.00030623,15]
[338903165,1727046640731,-354.06770509,0.00030623,15]
[338903166,1727046640743,-500.0,0.00030623,15]
[338903167,1727046640753,-500.0,0.00030623,15]
[338903168,1727046640763,-500.0,0.00030623,15]
[338903169,1727046640773,-500.0,0.00030623,15]
[338903170,1727046640784,-500.0,0.00030623,15]
[338903171,1727046640797,-500.0,0.00030623,15]
[338903172,1727046640807,-500.0,0.00030623,15]
[338903173,1727046640818,-500.0,0.00030623,15]
[338903174,1727046640828,-500.0,0.00030623,15]
[338903175,1727046640838,-500.0,0.00030623,15]
[338903176,1727046640848,-500.0,0.00030623,15]
[338903177,1727046640858,-500.0,0.00030623,15]
[338903178,1727046640868,-500.0,0.00030623,15]
[338903179,1727046640877,-581.65119371,0.00030623,15]
[338903180,1727046640886,-500.0,0.00030623,15]
[338903181,1727046640897,-500.0,0.00030623,15]
[338903182,1727046640908,-500.0,0.00030623,15]
[338903183,1727046640917,-500.0,0.00030623,15]
[338903184,1727046640927,-501.25778315,0.00030623,15]
[338903185,1727046640938,-500.59832491,0.00030623,15]
[338903186,1727046640949,-500.0,0.00030623,15]
[338903187,1727046640962,-500.0,0.00030623,15]
[338903188,1727046640973,-151.0,0.00031237,7]
[338903189,1727046640983,-716.0,0.0003146,2]
[338903190,1727046640992,-338.66449491,0.00031547,2]
[338903191,1727046641001,-152.33630927,0.00031698,2]
[338903192,1727046641011,-151.0,0.00032,30]
[338903193,1727046641021,-618.94746435,0.00032209,2]
[338903194,1727046641031,-151.0,0.00032645,7]
[338903196,1727046641040,-338.66449491,0.00032881,2]
[338903197,1727046641050,-2086.48861639,0.0003295,9]
[338903198,1727046641059,-22282.64907921,0.0003297,9]
[338903199,1727046641179,-10045.78,0.0003297,3]
[338903200,1727046641192,-33484.9623046,0.0003298,5]
[338903201,1727046641203,-32648.16332394,0.0003298,5]
[338903202,1727046641216,-4175.20702557,0.0003298,5]
[338903220,1727046646907,-453.31027655,0.0003298,5]
[338903295,1727047009451,5000.0,0.00025,120]
[338903297,1727047017806,5000.0,0.00025,120]
[338903356,1727047719376,18975.04680243,0.0001,2]
[338903357,1727047720849,814.76581697,0.000129,2]
[338903359,1727047763141,-478.45338864,0.000167,2]
[338903361,1727047817417,354.3915655,0.00019444,2]
[338903405,1727047831752,-175.411401,0.000198,2]
[338903407,1727047831762,-1055.9751654,0.00019902,2]
[338903409,1727047831771,-300.0,0.00019989,2]
[338903411,1727047831780,-300.0,0.00019989,2]
[338903413,1727047831789,-14668.7032646,0.0001999,2]
[338903443,1727047838083,-500.0,0.00019989,2]
[338903444,1727047838093,-500.0,0.00019989,2]
[338903445,1727047838102,-500.0,0.00019989,2]
[338903446,1727047838111,-289.01846221,0.00019989,2]
[338903447,1727047838120,-500.0,0.00019989,2]
[338903448,1727047838130,-98.43905786,0.00019989,2]
[338903484,1727047839785,-401.56094214,0.00019989,2]
[338903485,1727047839795,-500.0,0.00019989,2]
[338903486,1727047839804,-483.33094675,0.00019989,2]
[338903487,1727047839814,-500.0,0.00019989,2]
[338903488,1727047839823,-500.0,0.00019989,2]
[338903489,1727047839832,-500.0,0.00019989,2]
[338903490,1727047839841,-500.0,0.00019989,2]
[338903491,1727047839850,-500.0,0.00019989,2]
[338903492,1727047839859,-500.0,0.00019989,2]
[338903493,1727047839868,-500.0,0.00019989,2]
[338903494,1727047839878,-62034.88920459,0.0001999,2]
[338903495,1727047839887,-266.5941953,0.00020002,2]
[338903496,1727047839905,-225.77632994,0.00020841,2]
[338903497,1727047839914,-3000.0,0.00020941,2]
[338903498,1727047839923,-2188.371074,0.000216,2]
[338903499,1727047839933,-420.0,0.00021766,2]
[338903500,1727047839943,-3318.0438548,0.00021988,2]
[338903501,1727047839953,-420.0,0.00021988,2]
[338903502,1727047839962,-1055.97516537,0.00023045,2]
[338903503,1727047839971,-587.0,0.00023701,2]
[338903504,1727047839980,-300.0,0.00024187,2]
[338903505,1727047839990,-213.6932768,0.0002531,2]
[338903506,1727047839999,-716.0,0.00025808,2]
[338903507,1727047840009,-500.0,0.00026168,2]
[338903508,1727047840018,-599.22622875,0.00026168,2]
[338903509,1727047840027,-500.0,0.00026168,2]
[338903510,1727047840036,-591.50521109,0.00026168,2]
[338903511,1727047840046,-506.5574349,0.00026168,2]
[338903512,1727047840055,-500.0,0.00026168,2]
[338903513,1727047840065,-535.14,0.00026168,2]
[338903514,1727047840074,-24900.0,0.00026169,2]
[338903515,1727047840083,-1055.97516537,0.00026187,2]
[338903516,1727047840092,-200.0,0.00026247,15]
[338903517,1727047840102,-500.0,0.00026442,2]
[338903518,1727047840111,-196.309254,0.00026443,2]
[338903519,1727047840120,-273.834154,0.00026493,2]
[338903520,1727047840129,-2295.3790318,0.00026504,2]
[338903521,1727047840141,-500.0,0.00026716,2]
[338903522,1727047840150,-500.0,0.00026893,2]
[338903523,1727047840159,-500.0,0.00026893,2]
[338903524,1727047840168,-500.0,0.00026893,2]
[338903525,1727047840178,-500.0,0.00026893,2]
[338903526,1727047840188,-501.25778315,0.00026893,2]
[338903527,1727047840198,-500.59832491,0.00026893,2]
[338903528,1727047840209,-500.0,0.00026893,2]
[338903529,1727047840220,-500.0,0.00026893,2]
[338903530,1727047840231,-500.0,0.0002699,2]
[338903531,1727047840241,-151.0,0.00027034,4]
[338903532,1727047840250,-196.309254,0.00027132,2]
[338903533,1727047840258,-500.0,0.00027264,2]
[338903534,1727047840267,-298.406572,0.00027397,2]
[338903535,1727047840277,-500.0,0.00027538,15]
[338903536,1727047840286,-500.0,0.00027812,15]
[338903537,1727047840296,-196.309254,0.00027821,2]
[338903538,1727047840306,-150.0,0.000279,2]
[338903539,1727047840315,-500.0,0.00028086,15]
[338903540,1727047840324,-225.77632994,0.00028146,2]
[338903541,1727047840334,-500.0,0.0002836,15]
[338903542,1727047840343,-156.37,0.0002844,19]
[338903543,1727047840353,-151.0,0.0002844,5]
[338903544,1727047840362,-429.76,0.00028596,15]
[338903545,1727047840371,-500.0,0.00028597,15]
[338903546,1727047840380,-500.0,0.00028597,15]
[338903547,1727047840391,-500.0,0.00028597,15]
[338903548,1727047840402,-543.82655737,0.00028634,15]
[338903549,1727047840413,-1055.97516537,0.0002933,2]
[338903550,1727047840422,-151.0,0.00029846,6]
[338903551,1727047840431,-151.0,0.00031253,7]
[338903552,1727047840443,-152.33630927,0.00031796,2]
[338903553,1727047840452,-151.0,0.00032,30]
[338903554,1727047840461,-1055.97516537,0.00032472,2]
[338903555,1727047840470,-151.0,0.00032659,7]
[338903556,1727047840480,-14465.93,0.0003281,3]
[338903557,1727047840489,-1210.18491626,0.00032815,3]
[338903558,1727047840499,-6205.87362092,0.0003282,2]
[338903559,1727047840508,-17359.11,0.0003296,3]
[338903560,1727047840518,-20830.94,0.0003297,3]
[338903561,1727047840530,-151.0,0.0003298,14]
[338903562,1727047840541,-500.0,0.0003298,15]
[338903563,1727047840553,-500.0,0.0003298,15]
[338903564,1727047840565,-500.0,0.0003298,15]
[338903565,1727047840574,-592.43489178,0.0003298,15]
[338903566,1727047840583,-500.0,0.0003298,15]
[338903567,1727047840593,-500.0,0.0003298,15]
[338903569,1727047840602,-500.0,0.0003298,15]
[338903570,1727047840611,-500.0,0.0003298,15]
[338903571,1727047840620,-500.0,0.0003298,15]
[338903572,1727047840630,-591.58,0.0003298,2]
[338903573,1727047840641,-627.74,0.0003298,15]
[338903574,1727047840651,-500.0,0.0003298,15]
[338903575,1727047840660,-643.87,0.0003298,7]
[338903576,1727047840670,-500.0,0.0003298,15]
[338903577,1727047840679,-456.12926054,0.0003298,15]
[338903578,1727047840688,-500.0,0.0003298,15]
[338903579,1727047840698,-500.0,0.0003298,15]
[338903580,1727047840707,-500.0,0.0003298,7]
[338903581,1727047840716,-500.0,0.0003298,15]
[338903582,1727047840725,-500.0,0.0003298,15]
[338903583,1727047840734,-500.0,0.0003298,15]
[338903584,1727047840743,-188.65628345,0.0003298,15]
[338903585,1727047840752,-500.0,0.0003298,15]
[338903586,1727047840761,-500.0,0.0003298,15]
[338903587,1727047840771,-500.0,0.0003298,15]
[338903588,1727047840779,-150.0,0.00032986,14]
[338903589,1727047840789,-150.0,0.00032986,14]
[338903590,1727047840798,-200.0,0.00032986,14]
[338903591,1727047840807,-500.0,0.00032989,15]
[338903592,1727047840818,-156.0,0.00033,2]
[338903593,1727047840827,-298.406572,0.00033165,2]
[338903594,1727047840839,-500.0,0.00033253,15]
[338903595,1727047840851,-150.02,0.00033253,15]
[338903596,1727047840860,-500.0,0.00033253,7]
[338903597,1727047840869,-504.08,0.00033253,15]
[338903598,1727047840878,-150.0,0.00033321,2]
[338903599,1727047840887,-500.0,0.00033527,15]
[338903600,1727047840899,-426.63,0.00033527,7]
[338903601,1727047840908,-500.0,0.00033801,15]
[338903602,1727047840920,-150.0,0.00033966,5]
[338903603,1727047840932,-151.0,0.00034065,15]
[338903604,1727047840942,-500.0,0.00034075,15]
[338903605,1727047840953,-500.0,0.00034349,15]
[338903606,1727047840963,-156.0,0.00034521,2]
[338903607,1727047840974,-1331.20340788,0.00034784,7]